[Event "Tournoi fermé pour norme de MI de Créon 2025"]
[Site "CREON, France"]
[Date "2025.07.29"]
[Round "2.3"]
[White "Pichon, Ewen"]
[Black "Lacan-Rus, David"]
[Result "1-0"]
[TimeControl "1h30/40 - 30' + [30'']"]
[WhiteElo "2311"]
[BlackElo "2369"]

1. d4 {[%clk 01:30:59]} Nf6 {[%clk 01:29:58]} {[%emt 00:01:02]} 2. c4 {[%clk
01:31:23]} {[%emt 00:00:05]} g6 {[%clk 01:30:00]} {[%emt 00:00:27]} 3. Nc3
{[%clk 01:31:45]} {[%emt 00:00:10]} d5 {[%clk 01:30:21]} {[%emt 00:00:09]} 4.
cxd5 {[%clk 01:32:02]} {[%emt 00:00:13]} Nxd5 {[%clk 01:30:41]} {[%emt
00:00:09]} 5. e4 {[%clk 01:32:29]} {[%emt 00:00:04]} Nxc3 {[%clk 01:31:03]}
{[%emt 00:00:09]} 6. bxc3 {[%clk 01:32:56]} {[%emt 00:00:03]} Bg7 {[%clk
01:31:19]} {[%emt 00:00:13]} 7. Nf3 {[%clk 01:33:16]} {[%emt 00:00:10]} c5
{[%clk 01:31:39]} {[%emt 00:00:10]} 8. Rb1 {[%clk 01:33:43]} {[%emt 00:00:04]}
O-O {[%clk 01:30:57]} {[%emt 00:01:11]} 9. h3 {[%clk 01:33:59]} {[%emt
00:00:14]} Nc6 {[%clk 01:24:03]} {[%emt 00:07:25]} 10. d5 {[%clk 01:34:15]}
{[%emt 00:00:14]} Bxc3+ {[%clk 01:19:22]} {[%emt 00:05:11]} 11. Bd2 {[%clk
01:34:40]} {[%emt 00:00:05]} Bxd2+ {[%clk 01:19:47]} {[%emt 00:00:06]} 12. Qxd2
{[%clk 01:35:08]} {[%emt 00:00:02]} Na5 {[%clk 01:10:17]} {[%emt 00:10:00]} 13.
h4 {[%clk 01:22:05]} {[%emt 00:13:33]} f6 {[%clk 01:02:17]} {[%emt 00:08:30]}
14. h5 {[%clk 01:15:38]} {[%emt 00:06:58]} g5 {[%clk 00:59:09]} {[%emt
00:03:38]} 15. h6 {[%clk 01:14:46]} {[%emt 00:01:21]} e5 {[%clk 00:50:46]}
{[%emt 00:08:52]} 16. Be2 {[%clk 01:07:57]} {[%emt 00:07:19]} b6 {[%clk
00:46:27]} {[%emt 00:04:49]} 17. Nh2 {[%clk 01:03:29]} {[%emt 00:04:58]} Nb7
{[%clk 00:42:20]} {[%emt 00:04:37]} 18. Rb3 {[%clk 00:57:28]} {[%emt 00:06:31]}
Nd6 {[%clk 00:41:39]} {[%emt 00:01:11]} 19. Re3 {[%clk 00:56:58]} {[%emt
00:01:01]} Qe8 {[%clk 00:33:33]} {[%emt 00:08:36]} 20. Nf1 {[%clk 00:53:48]}
{[%emt 00:03:39]} Qa4 {[%clk 00:32:15]} {[%emt 00:01:48]} 21. Ng3 {[%clk
00:53:30]} {[%emt 00:00:49]} Kf7 {[%clk 00:26:34]} {[%emt 00:06:10]} 22. O-O
{[%clk 00:51:51]} {[%emt 00:02:09]} Ke7 {[%clk 00:26:17]} {[%emt 00:00:47]} 23.
Qc1 {[%clk 00:50:26]} {[%emt 00:01:55]} Qe8 {[%clk 00:24:02]} {[%emt 00:02:44]}
24. Bh5 {[%clk 00:50:07]} {[%emt 00:00:50]} Qd8 {[%clk 00:24:23]} {[%emt
00:00:09]} 25. Rd1 {[%clk 00:49:39]} {[%emt 00:00:58]} Bd7 {[%clk 00:24:06]}
{[%emt 00:00:48]} 26. Be2 {[%clk 00:47:39]} {[%emt 00:02:30]} Rg8 {[%emt
00:02:17]} 27. Nf5+ {[%clk 00:44:32]} {[%emt 00:03:30]} Bxf5 {[%clk 00:21:27]}
{[%emt 00:01:28]} 28. exf5 {[%clk 00:45:00]} {[%emt 00:00:02]} Nxf5 {[%clk
00:09:41]} {[%emt 00:12:16]} 29. d6+ {[%clk 00:45:10]} {[%emt 00:00:21]} Kf8
{[%clk 00:10:07]} {[%emt 00:00:04]} 30. Qb1 {[%clk 00:38:08]} {[%emt 00:07:31]}
Nxe3 {[%clk 00:05:29]} {[%emt 00:05:08]} 31. Qxh7 {[%clk 00:38:23]} {[%emt
00:00:15]} Qe8 {[%clk 00:03:30]} {[%emt 00:02:29]} 32. Bh5 {[%clk 00:38:32]}
{[%emt 00:00:21]} Qe6 {[%clk 00:02:15]} {[%emt 00:01:45]} 33. fxe3 {[%clk
00:39:01]} {[%emt 00:00:02]} Rd8 {[%clk 00:00:33]} {[%emt 00:02:12]} 34. Qc7
{[%clk 00:39:07]} {[%emt 00:00:24]} Qd7 {[%clk 00:00:39]} {[%emt 00:00:24]} 35.
Rd2 {[%clk 00:37:55]} {[%emt 00:01:42]} Rh8 {[%clk 00:00:34]} {[%emt 00:00:34]}
36. Bg4 {[%clk 00:38:08]} {[%emt 00:00:17]} Qxc7 {[%emt 00:00:29]} 37. dxc7
{[%clk 00:38:37]} {[%emt 00:00:01]} Ra8 {[%clk 00:00:55]} {[%emt 00:00:10]} 38.
c8=Q+ {[%clk 00:34:10]} {[%emt 00:04:56]} Rxc8 {[%clk 00:01:21]} {[%emt
00:00:04]} 39. Bxc8 {[%clk 00:34:37]} {[%emt 00:00:04]} Rxh6 {[%clk 00:01:40]}
{[%emt 00:00:10]} 40. Bf5 {[%clk 00:34:58]} {[%emt 00:00:09]} Rh4 {[%clk
00:00:56]} {[%emt 00:01:14]} 41. Rd8+ {[%clk 00:35:12]} {[%emt 00:00:16]} Ke7
{[%clk 00:00:55]} {[%emt 00:00:31]} 42. Rd7+ {[%clk 00:35:39]} {[%emt
00:00:03]} Kf8 {[%clk 00:01:20]} {[%emt 00:00:05]} 43. Rxa7 {[%clk 00:36:05]}
{[%emt 00:00:04]} Rb4 {[%clk 00:01:46]} {[%emt 00:00:04]} 44. Kf2 {[%clk
00:35:26]} {[%emt 00:01:08]} Rb2+ {[%clk 00:01:38]} {[%emt 00:00:39]} 45. Kf3
{[%clk 00:35:50]} {[%emt 00:00:05]} c4 {[%clk 00:02:04]} {[%emt 00:00:04]} 46.
a4 {[%clk 00:35:08]} {[%emt 00:01:12]} 1-0

[ePGN "0.1;DGT LiveChess/2.2.7"]

[Event "Tournoi fermé pour norme de MI de Créon 2025"]
[Site "CREON, France"]
[Date "2025.07.29"]
[Round "3.4"]
[White "Kocharin, Timur"]
[Black "Pichon, Ewen"]
[Result "1-0"]
[TimeControl "1h30/40 - 30' + [30'']"]
[WhiteElo "2302"]
[BlackElo "2311"]

1. e4 {[%clk 01:28:12]} {[%emt 00:02:47]} e5 {[%clk 01:30:04]} {[%emt
00:00:57]} 2. Nf3 {[%clk 01:28:29]} {[%emt 00:00:13]} Nc6 {[%clk 01:30:30]}
{[%emt 00:00:04]} 3. Bb5 {[%clk 01:28:51]} {[%emt 00:00:07]} a6 {[%clk
01:30:58]} {[%emt 00:00:04]} 4. Ba4 {[%clk 01:29:14]} {[%emt 00:00:06]} Nf6
{[%clk 01:30:07]} {[%emt 00:01:21]} 5. O-O {[%clk 01:29:34]} {[%emt 00:00:10]}
d6 {[%clk 01:29:11]} {[%emt 00:01:26]} 6. Bxc6+ {[%clk 01:29:39]} {[%emt
00:00:24]} bxc6 {[%clk 01:29:38]} {[%emt 00:00:04]} 7. d4 {[%clk 01:30:01]}
{[%emt 00:00:08]} exd4 {[%clk 01:29:40]} {[%emt 00:00:28]} 8. Nxd4 {[%clk
01:30:21]} {[%emt 00:00:09]} Bd7 {[%clk 01:29:44]} {[%emt 00:00:27]} 9. Qf3
{[%clk 01:30:18]} {[%emt 00:00:33]} Be7 {[%clk 01:26:09]} {[%emt 00:04:06]} 10.
e5 {[%clk 01:29:21]} {[%emt 00:01:26]} dxe5 {[%clk 01:22:28]} {[%emt 00:04:11]}
11. Nxc6 {[%clk 01:29:33]} {[%emt 00:00:18]} Bxc6 {[%clk 01:21:03]} {[%emt
00:01:56]} 12. Qxc6+ {[%clk 01:29:55]} {[%emt 00:00:08]} Kf8 {[%clk 01:15:28]}
{[%emt 00:06:05]} 13. Nc3 {[%clk 01:30:09]} {[%emt 00:00:16]} h6 {[%clk
01:15:21]} {[%emt 00:00:37]} 14. Be3 {[%clk 01:28:35]} {[%emt 00:02:03]} Bd6
{[%clk 01:14:36]} {[%emt 00:01:17]} 15. Rad1 {[%clk 01:25:18]} {[%emt
00:03:47]} Qe8 {[%clk 01:13:37]} {[%emt 00:01:28]} 16. Qc4 {[%clk 01:23:40]}
{[%emt 00:02:08]} Kg8 {[%clk 01:10:06]} {[%emt 00:04:01]} 17. Nd5 {[%clk
01:19:05]} {[%emt 00:05:06]} Nxd5 {[%clk 01:10:15]} {[%emt 00:00:21]} 18. Qxd5
{[%clk 01:18:27]} {[%emt 00:01:08]} Rb8 {[%clk 01:08:36]} {[%emt 00:02:09]} 19.
c4 {[%clk 01:16:25]} {[%emt 00:02:32]} Rxb2 {[%clk 01:00:49]} {[%emt 00:08:17]}
20. c5 {[%clk 01:14:32]} {[%emt 00:02:21]} Bf8 {[%clk 01:00:18]} {[%emt
00:01:02]} 21. Rfe1 {[%clk 01:11:06]} {[%emt 00:03:57]} c6 {[%clk 00:55:57]}
{[%emt 00:04:51]} 22. Qc4 {[%clk 00:57:31]} {[%emt 00:14:05]} Qe6 {[%clk
00:50:02]} {[%emt 00:06:25]} 23. Qxe6 {[%clk 00:57:25]} {[%emt 00:00:35]} fxe6
{[%clk 00:50:31]} {[%emt 00:00:02]} 24. Rd8 {[%clk 00:57:43]} {[%emt 00:00:11]}
Kf7 {[%clk 00:48:05]} {[%emt 00:02:57]} 25. Rc8 {[%clk 00:51:43]} {[%emt
00:06:30]} Rxa2 {[%clk 00:47:10]} {[%emt 00:01:25]} 26. Rb1 {[%clk 00:48:39]}
{[%emt 00:03:33]} Rg8 {[%clk 00:46:56]} {[%emt 00:00:45]} 27. g3 {[%clk
00:48:18]} {[%emt 00:00:51]} Be7 {[%clk 00:46:24]} {[%emt 00:01:01]} 28. Rxc6
{[%clk 00:43:52]} {[%emt 00:04:56]} a5 {[%clk 00:46:16]} {[%emt 00:00:40]} 29.
Rb7 {[%clk 00:42:46]} {[%emt 00:01:35]} a4 {[%clk 00:46:23]} {[%emt 00:00:24]}
30. Ra6 {[%clk 00:40:44]} {[%emt 00:02:32]} a3 {[%clk 00:45:58]} {[%emt
00:00:55]} 31. Rba7 {[%clk 00:34:50]} {[%emt 00:06:24]} Rc8 {[%clk 00:43:24]}
{[%emt 00:03:04]} 32. Rxa3 {[%clk 00:35:06]} {[%emt 00:00:14]} Rxa3 {[%clk
00:43:50]} {[%emt 00:00:03]} 33. Rxa3 {[%clk 00:35:28]} {[%emt 00:00:08]} Rc7
{[%clk 00:43:48]} {[%emt 00:00:33]} 34. Rc3 {[%clk 00:35:41]} {[%emt 00:00:17]}
Rc6 {[%clk 00:43:50]} {[%emt 00:00:28]} 35. Kg2 {[%clk 00:35:46]} {[%emt
00:00:24]} e4 {[%clk 00:43:45]} {[%emt 00:00:36]} 36. Rc4 {[%clk 00:36:00]}
{[%emt 00:00:16]} e5 {[%clk 00:43:57]} {[%emt 00:00:19]} 37. Rxe4 {[%clk
00:36:11]} {[%emt 00:00:17]} Bf6 {[%clk 00:41:53]} {[%emt 00:02:36]} 38. Rb4
{[%clk 00:34:28]} {[%emt 00:02:13]} Be7 {[%clk 00:40:10]} {[%emt 00:02:13]} 39.
Rb7 {[%clk 00:31:06]} {[%emt 00:03:52]} Ke6 {[%clk 00:36:37]} {[%emt 00:04:03]}
40. Kf3 {[%clk 00:26:44]} {[%emt 00:04:52]} Bxc5 {[%clk 00:32:23]} {[%emt
00:04:44]} 41. Rxg7 {[%clk 00:23:34]} {[%emt 00:03:40]} Kf6 {[%clk 00:32:35]}
{[%emt 00:00:19]} 42. Rb7 {[%clk 00:19:16]} {[%emt 00:04:48]} Bxe3 {[%clk
00:32:21]} {[%emt 00:00:43]} 43. Kxe3 {[%clk 00:19:12]} {[%emt 00:00:34]} Rc3+
{[%clk 00:31:56]} {[%emt 00:00:55]} 44. Ke4 {[%clk 00:19:18]} {[%emt 00:00:24]}
Rc4+ {[%clk 00:30:36]} {[%emt 00:01:50]} 45. Kd3 {[%clk 00:19:40]} {[%emt
00:00:07]} Rc6 {[%clk 00:31:02]} {[%emt 00:00:05]} 46. h4 {[%clk 00:19:55]}
{[%emt 00:00:15]} Ra6 {[%clk 00:31:13]} {[%emt 00:00:19]} 47. Rb3 {[%clk
00:19:48]} {[%emt 00:00:37]} Kf5 {[%clk 00:31:23]} {[%emt 00:00:20]} 48. Ke3
{[%clk 00:19:50]} {[%emt 00:00:28]} Rc6 {[%clk 00:14:07]} {[%emt 00:17:46]} 49.
Kf3 {[%clk 00:19:45]} {[%emt 00:00:35]} Ra6 {[%clk 00:11:55]} {[%emt 00:02:42]}
50. Rb5 {[%clk 00:19:27]} {[%emt 00:00:48]} Ra3+ {[%clk 00:10:19]} {[%emt
00:02:06]} 51. Kg2 {[%clk 00:19:48]} {[%emt 00:00:07]} Ra6 {[%clk 00:10:33]}
{[%emt 00:00:17]} 52. Rc5 {[%clk 00:20:04]} {[%emt 00:00:13]} Rb6 {[%clk
00:10:45]} {[%emt 00:00:18]} 53. Rc3 {[%clk 00:20:23]} {[%emt 00:00:11]} Ra6
{[%clk 00:10:00]} {[%emt 00:01:15]} 54. Kf3 {[%clk 00:20:38]} {[%emt 00:00:15]}
Rb6 {[%clk 00:10:13]} {[%emt 00:00:18]} 55. g4+ {[%clk 00:19:40]} {[%emt
00:01:27]} Kf6 {[%clk 00:10:30]} {[%emt 00:00:13]} 56. Rc4 {[%clk 00:19:13]}
{[%emt 00:00:58]} Ra6 {[%clk 00:10:52]} {[%emt 00:00:08]} 57. Ke4 {[%clk
00:19:30]} {[%emt 00:00:13]} Rb6 {[%clk 00:11:00]} {[%emt 00:00:23]} 58. f3
{[%clk 00:19:51]} {[%emt 00:00:08]} Ra6 {[%clk 00:11:24]} {[%emt 00:00:06]} 59.
Kd5 {[%clk 00:17:26]} {[%emt 00:02:55]} Ra3 {[%clk 00:10:42]} {[%emt 00:01:12]}
60. Rc6+ {[%clk 00:15:42]} {[%emt 00:02:13]} Kg7 {[%clk 00:10:50]} {[%emt
00:00:22]} 61. Ke4 {[%clk 00:15:52]} {[%emt 00:00:20]} h5 {[%clk 00:08:28]}
{[%emt 00:02:52]} 62. g5 {[%clk 00:15:48]} {[%emt 00:00:34]} Ra4+ {[%clk
00:08:49]} {[%emt 00:00:10]} 63. Kxe5 {[%clk 00:16:10]} {[%emt 00:00:07]} Rxh4
{[%clk 00:09:16]} {[%emt 00:00:03]} 64. f4 {[%clk 00:16:23]} {[%emt 00:00:16]}
Rh1 {[%clk 00:09:36]} {[%emt 00:00:11]} 65. Kf5 {[%clk 00:16:40]} {[%emt
00:00:14]} Ra1 {[%clk 00:09:51]} {[%emt 00:00:15]} 66. Rc7+ {[%clk 00:17:00]}
{[%emt 00:00:10]} Kf8 {[%clk 00:10:18]} {[%emt 00:00:03]} 67. Kg6 {[%clk
00:16:59]} {[%emt 00:00:30]} h4 {[%clk 00:10:07]} {[%emt 00:00:41]} 68. f5
{[%clk 00:17:21]} {[%emt 00:00:08]} h3 {[%clk 00:10:16]} {[%emt 00:00:21]} 69.
f6 {[%clk 00:17:36]} {[%emt 00:00:15]} Ra8 {[%clk 00:10:42]} {[%emt 00:00:04]}
70. Rh7 {[%clk 00:17:54]} {[%emt 00:00:11]} 1-0

[Event "Tournoi fermé pour norme de MI de Créon 2025"]
[Site "CREON, France"]
[Date "2025.07.29"]
[Round "3.2"]
[White "Lacan-Rus, David"]
[Black "Le Hetet, Nicolas"]
[Result "1/2-1/2"]
[TimeControl "1h30/40 - 30' + [30'']"]
[WhiteElo "2369"]
[BlackElo "2288"]

1. e4 {[%clk 01:30:57]} {[%emt 00:00:02]} c5 {[%clk 01:30:52]} {[%emt
00:00:08]} 2. Nf3 {[%clk 01:30:41]} {[%emt 00:00:46]} Nc6 {[%clk 01:31:13]}
{[%emt 00:00:09]} 3. Bb5 {[%clk 01:31:05]} {[%emt 00:00:06]} g6 {[%clk
01:31:36]} {[%emt 00:00:07]} 4. c3 {[%clk 01:30:55]} {[%emt 00:00:41]} Bg7
{[%clk 01:31:13]} {[%emt 00:00:53]} 5. d4 {[%clk 01:31:15]} {[%emt 00:00:10]}
Qa5 {[%clk 01:15:18]} {[%emt 00:16:25]} 6. Qb3 {[%clk 01:15:34]} {[%emt
00:16:11]} cxd4 {[%clk 01:09:17]} {[%emt 00:06:31]} 7. O-O {[%clk 01:12:48]}
{[%emt 00:03:16]} dxc3 {[%clk 01:04:22]} {[%emt 00:05:25]} 8. Nxc3 {[%clk
01:08:01]} {[%emt 00:05:17]} Nf6 {[%clk 01:01:40]} {[%emt 00:03:12]} 9. Nd5
{[%clk 00:50:45]} {[%emt 00:17:46]} Nxe4 {[%clk 00:50:37]} {[%emt 00:11:34]} 10.
Ng5 {[%clk 00:37:36]} {[%emt 00:13:39]} Nd6 {[%clk 00:39:37]} {[%emt 00:11:30]}
11. a4 {[%clk 00:29:53]} {[%emt 00:08:13]} h6 {[%clk 00:32:46]} {[%emt
00:07:21]} 12. Nf3 {[%clk 00:28:51]} {[%emt 00:01:32]} O-O {[%clk 00:31:39]}
{[%emt 00:01:36]} 13. Bf4 {[%clk 00:27:12]} {[%emt 00:02:09]} e5 {[%clk
00:29:09]} {[%emt 00:03:01]} 14. Bd2 {[%clk 00:20:05]} {[%emt 00:07:37]} Qd8
{[%clk 00:28:30]} {[%emt 00:01:08]} 15. Bb4 {[%clk 00:20:23]} {[%emt 00:00:13]}
Nxb4 {[%clk 00:27:43]} {[%emt 00:01:18]} 16. Qxb4 {[%clk 00:20:51]} {[%emt
00:00:02]} Nf5 {[%clk 00:27:22]} {[%emt 00:00:50]} 17. Bd3 {[%clk 00:17:03]}
{[%emt 00:04:18]} d6 {[%clk 00:24:17]} {[%emt 00:03:36]} 18. Bxf5 {[%clk
00:17:00]} {[%emt 00:00:33]} Bxf5 {[%clk 00:23:51]} {[%emt 00:00:55]} 19. Qxb7
{[%clk 00:16:06]} {[%emt 00:01:24]} Bd3 {[%clk 00:23:46]} {[%emt 00:00:35]} 20.
Rfe1 {[%clk 00:14:53]} {[%emt 00:01:43]} e4 {[%clk 00:24:01]} {[%emt 00:00:15]}
21. Nd2 {[%clk 00:14:11]} {[%emt 00:01:11]} Rb8 {[%clk 00:21:09]} {[%emt
00:03:23]} 22. Qxa7 {[%clk 00:13:08]} {[%emt 00:01:33]} Re8 {[%clk 00:17:44]}
{[%emt 00:03:55]} 23. Qe3 {[%clk 00:06:51]} {[%emt 00:06:47]} Qa5 {[%clk
00:15:51]} {[%emt 00:02:23]} 24. Nf4 {[%clk 00:06:17]} {[%emt 00:01:04]} Bxb2
{[%clk 00:14:01]} {[%emt 00:02:21]} 25. Rad1 {[%clk 00:03:55]} {[%emt
00:02:51]} Qxa4 {[%clk 00:10:20]} {[%emt 00:04:11]} 26. Nxd3 {[%clk 00:04:05]}
{[%emt 00:00:20]} exd3 {[%clk 00:10:44]} {[%emt 00:00:06]} 27. Qxd3 {[%clk
00:04:27]} {[%emt 00:00:07]} Rxe1+ {[%clk 00:08:58]} 28. Rxe1 {[%clk 00:04:56]}
Qd4 {[%clk 00:08:51]} {[%emt 00:00:36]} 29. Qe3 {[%clk 00:02:04]} {[%emt
00:03:22]} Qxe3 {[%clk 00:07:38]} {[%emt 00:01:44]} 30. fxe3 {[%clk 00:02:29]}
{[%emt 00:00:05]} Ba3 {[%clk 00:06:00]} {[%emt 00:02:08]} 31. Kf2 {[%clk
00:01:39]} {[%emt 00:01:20]} Rb2 {[%clk 00:04:42]} {[%emt 00:01:48]} 32. Re2
{[%clk 00:02:04]} {[%emt 00:00:05]} f5 {[%clk 00:02:12]} {[%emt 00:03:00]} 33.
Nc4 {[%clk 00:00:58]} {[%emt 00:01:35]} Rxe2+ {[%clk 00:02:28]} {[%emt
00:00:15]} 34. Kxe2 {[%clk 00:01:23]} {[%emt 00:00:05]} Bc5 {[%clk 00:02:50]}
{[%emt 00:00:07]} 35. h3 {[%clk 00:00:51]} {[%emt 00:01:02]} Kf7 {[%clk
00:02:54]} {[%emt 00:00:26]} 36. Kf3 {[%clk 00:01:03]} {[%emt 00:00:18]} Ke6
{[%clk 00:02:58]} {[%emt 00:00:27]} 37. Nb2 {[%clk 00:01:30]} {[%emt 00:00:04]}
Kd5 {[%clk 00:00:49]} {[%emt 00:02:38]} 38. Nd3 {[%clk 00:01:35]} {[%emt
00:00:24]} g5 {[%clk 00:00:45]} {[%emt 00:00:35]} 39. g4 {[%clk 00:01:13]}
{[%emt 00:00:52]} fxg4+ {[%clk 00:00:40]} {[%emt 00:00:35]} 40. hxg4 {[%clk
00:01:36]} {[%emt 00:00:07]} Kc4 {[%clk 00:00:40]} {[%emt 00:00:30]} 41. Ke2
{[%clk 00:30:14]} {[%emt 00:01:52]} Bb6 {[%clk 00:26:23]} {[%emt 00:04:47]} 42.
Nb2+ {[%clk 00:26:43]} {[%emt 00:04:01]} Kb3 {[%clk 00:26:06]} {[%emt
00:00:47]} 43. Nd1 {[%clk 00:26:38]} {[%emt 00:00:35]} Kc2 {[%clk 00:25:22]}
{[%emt 00:01:14]} 44. Nf2 {[%clk 00:26:51]} {[%emt 00:00:16]} d5 {[%clk
00:25:25]} {[%emt 00:00:27]} 45. Nd3 {[%clk 00:27:08]} {[%emt 00:00:14]} Kc3
{[%clk 00:24:18]} {[%emt 00:01:37]} 1/2-1/2

[Event "Tournoi fermé pour norme de MI de Créon 2025"]
[Site "CREON, France"]
[Date "2025.07.29"]
[Round "3.1"]
[White "Lamaze, Simon"]
[Black "Mohammad Nubairshah"]
[Result "0-1"]
[TimeControl "1h30/40 - 30' + [30'']"]
[WhiteElo "2458"]
[BlackElo "2378"]

1. e4 {[%clk 01:30:57]} {[%emt 00:00:02]} c6 {[%clk 01:30:54]} {[%emt
00:00:07]} 2. d4 {[%clk 01:31:19]} {[%emt 00:00:08]} d5 {[%clk 01:31:17]}
{[%emt 00:00:07]} 3. Nc3 {[%clk 01:31:44]} {[%emt 00:00:05]} dxe4 {[%clk
01:31:33]} {[%emt 00:00:13]} 4. Nxe4 {[%clk 01:32:02]} {[%emt 00:00:12]} Bf5
{[%clk 01:32:02]} {[%emt 00:00:02]} 5. Ng3 {[%clk 01:32:20]} {[%emt 00:00:11]}
Bg6 {[%clk 01:32:30]} {[%emt 00:00:02]} 6. Nh3 {[%clk 01:32:40]} {[%emt
00:00:10]} Nf6 {[%clk 01:32:42]} {[%emt 00:00:18]} 7. Nf4 {[%clk 01:32:59]}
{[%emt 00:00:10]} e5 {[%clk 01:32:53]} {[%emt 00:00:20]} 8. Nxg6 {[%clk
01:32:28]} {[%emt 00:01:01]} hxg6 {[%clk 01:33:21]} {[%emt 00:00:02]} 9. Ne2
{[%clk 01:27:31]} {[%emt 00:05:27]} Nbd7 {[%clk 01:32:27]} {[%emt 00:01:24]} 10.
g3 {[%clk 01:22:46]} {[%emt 00:05:15]} Qa5+ {[%clk 01:29:10]} {[%emt 00:03:47]}
11. Nc3 {[%clk 01:13:01]} {[%emt 00:10:15]} O-O-O {[%clk 01:21:16]} {[%emt
00:08:24]} 12. Bg2 {[%clk 01:06:36]} {[%emt 00:06:55]} exd4 {[%clk 01:21:02]}
{[%emt 00:00:45]} 13. Qxd4 {[%clk 01:06:56]} {[%emt 00:00:10]} Bc5 {[%clk
01:21:14]} {[%emt 00:00:17]} 14. Qa4 {[%clk 01:06:26]} {[%emt 00:01:00]} Rhe8+
{[%clk 01:21:07]} {[%emt 00:00:37]} 15. Kf1 {[%clk 01:06:45]} {[%emt 00:00:11]}
Qb6 {[%clk 01:21:04]} {[%emt 00:00:34]} 16. Qc4 {[%clk 00:58:49]} {[%emt
00:08:25]} Bxf2 {[%clk 01:01:02]} {[%emt 00:20:32]} 17. Bf4 {[%clk 00:59:07]}
{[%emt 00:00:12]} Ng4 {[%clk 00:51:30]} {[%emt 00:10:03]} 18. Nd5 {[%clk
00:48:12]} {[%emt 00:11:24]} Qxb2 {[%clk 00:46:43]} {[%emt 00:05:17]} 19. Rd1
{[%clk 00:48:36]} {[%emt 00:00:07]} Nde5 {[%clk 00:42:55]} {[%emt 00:04:18]} 20.
Bxe5 {[%clk 00:40:16]} {[%emt 00:08:49]} Nxe5 {[%clk 00:43:14]} {[%emt
00:00:11]} 21. Qa4 {[%clk 00:40:39]} {[%emt 00:00:07]} cxd5 {[%clk 00:33:20]}
{[%emt 00:10:24]} 22. Kxf2 {[%clk 00:41:03]} {[%emt 00:00:06]} Nc4 {[%clk
00:33:11]} {[%emt 00:00:39]} 23. Qb3 {[%clk 00:40:39]} {[%emt 00:00:55]} Qf6+
{[%clk 00:33:10]} {[%emt 00:00:30]} 24. Bf3 {[%clk 00:40:20]} {[%emt 00:00:49]}
Re3 {[%clk 00:32:58]} {[%emt 00:00:43]} 25. Qxe3 {[%clk 00:40:37]} {[%emt
00:00:13]} Nxe3 {[%clk 00:33:26]} {[%emt 00:00:02]} 26. Kxe3 {[%clk 00:40:57]}
{[%emt 00:00:10]} Qc3+ {[%clk 00:30:16]} {[%emt 00:03:41]} 0-1

[Event "Tournoi fermé pour norme de MI de Créon 2025"]
[Site "CREON, France"]
[Date "2025.07.29"]
[Round "3.3"]
[White "Jerez Perez, Alfonso"]
[Black "Malka, Samuel"]
[Result "1/2-1/2"]
[TimeControl "1h30/40 - 30' + [30'']"]
[WhiteElo "2328"]
[BlackElo "2268"]

1. e4 {[%clk 01:30:54]} {[%emt 00:00:05]} d6 {[%clk 01:30:55]} {[%emt
00:00:06]} 2. d4 {[%clk 01:30:48]} {[%emt 00:00:35]} Nf6 {[%clk 01:31:19]}
{[%emt 00:00:06]} 3. Nc3 {[%clk 01:30:49]} {[%emt 00:00:30]} g6 {[%clk
01:31:43]} {[%emt 00:00:06]} 4. Nf3 {[%clk 01:31:03]} {[%emt 00:00:16]} Bg7
{[%clk 01:32:09]} {[%emt 00:00:04]} 5. Be2 {[%clk 01:31:22]} {[%emt 00:00:10]}
O-O {[%clk 01:32:30]} {[%emt 00:00:09]} 6. O-O {[%clk 01:31:45]} {[%emt
00:00:07]} a6 {[%clk 01:32:50]} {[%emt 00:00:10]} 7. a4 {[%clk 01:31:44]}
{[%emt 00:00:31]} Nc6 {[%clk 01:33:17]} {[%emt 00:00:04]} 8. d5 {[%clk
01:30:48]} {[%emt 00:01:26]} Nb4 {[%clk 01:33:46]} {[%emt 00:00:02]} 9. a5
{[%clk 01:27:22]} {[%emt 00:03:55]} e6 {[%clk 01:26:14]} {[%emt 00:08:00]} 10.
h3 {[%clk 01:15:02]} {[%emt 00:12:51]} exd5 {[%clk 01:18:55]} {[%emt 00:07:49]}
11. Nxd5 {[%clk 01:12:54]} {[%emt 00:02:38]} Nc6 {[%clk 01:09:38]} {[%emt
00:09:47]} 12. Bg5 {[%clk 01:06:01]} {[%emt 00:07:24]} h6 {[%clk 01:07:41]}
{[%emt 00:02:26]} 13. Nxf6+ {[%clk 01:01:34]} {[%emt 00:04:58]} Bxf6 {[%clk
01:08:05]} {[%emt 00:00:06]} 14. Bxh6 {[%clk 01:01:37]} {[%emt 00:00:27]} Bxb2
{[%clk 01:01:03]} {[%emt 00:07:32]} 15. Bxf8 {[%clk 00:52:31]} {[%emt
00:09:36]} Bxa1 {[%clk 01:01:21]} {[%emt 00:00:12]} 16. Qxa1 {[%clk 00:52:45]}
{[%emt 00:00:17]} Qxf8 {[%clk 01:01:10]} {[%emt 00:00:41]} 17. Bc4 {[%clk
00:52:55]} {[%emt 00:00:19]} Qe7 {[%clk 00:57:49]} {[%emt 00:03:51]} 18. Bd5
{[%clk 00:50:49]} {[%emt 00:02:36]} Ne5 {[%clk 00:44:21]} {[%emt 00:13:57]} 19.
Nxe5 {[%clk 00:48:03]} {[%emt 00:03:17]} dxe5 {[%clk 00:42:01]} {[%emt
00:02:49]} 20. Rd1 {[%clk 00:32:47]} {[%emt 00:15:47]} Rb8 {[%clk 00:28:02]}
{[%emt 00:14:29]} 21. Qc3 {[%clk 00:28:47]} {[%emt 00:04:31]} b6 {[%clk
00:23:55]} {[%emt 00:04:36]} 22. Rd3 {[%clk 00:23:09]} {[%emt 00:06:07]} bxa5
{[%clk 00:21:14]} {[%emt 00:03:12]} 23. Rf3 {[%clk 00:16:34]} {[%emt 00:07:05]}
Be6 {[%clk 00:21:01]} {[%emt 00:00:43]} 24. Qxa5 {[%clk 00:13:10]} {[%emt
00:03:54]} Bxd5 {[%clk 00:19:04]} {[%emt 00:02:26]} 25. Qxd5 {[%clk 00:13:32]}
{[%emt 00:00:09]} Kg7 {[%clk 00:16:25]} {[%emt 00:03:08]} 26. Qa5 {[%clk
00:10:00]} {[%emt 00:04:03]} Rb4 {[%clk 00:12:54]} {[%emt 00:04:01]} 27. Qd5
{[%clk 00:08:54]} {[%emt 00:01:36]} Rd4 {[%clk 00:12:36]} {[%emt 00:00:48]} 28.
Qc6 {[%clk 00:07:43]} {[%emt 00:01:40]} a5 {[%clk 00:09:54]} {[%emt 00:03:13]}
29. Rc3 {[%clk 00:07:11]} {[%emt 00:01:02]} a4 {[%clk 00:09:19]} {[%emt
00:01:04]} 30. Qxc7 {[%clk 00:06:30]} {[%emt 00:01:12]} Qxc7 {[%clk 00:09:02]}
{[%emt 00:00:47]} 31. Rxc7 {[%clk 00:06:55]} {[%emt 00:00:04]} Rxe4 {[%clk
00:08:59]} {[%emt 00:00:33]} 32. c4 {[%clk 00:05:49]} {[%emt 00:01:36]} 1/2-1/2